fUST/lending_fUST_20260129
["ID","MTS","AMOUNT","RATE_DAILY","PERIOD"]
[403881566,1769623843302,-160.0,0.00030503,7]
[403881567,1769623843311,-1000.0,0.00030508,14]
[403881568,1769623843320,-151.0,0.00030523,14]
[403881569,1769623843330,-1000.0,0.0003055,14]
[403881570,1769623843340,-276.12088692,0.00030556,2]
[403881571,1769623843349,-168.0,0.00030558,2]
[403881572,1769623843359,-151.0,0.00030588,14]
[403881573,1769623843368,-1000.0,0.00030592,14]
[403881574,1769623843377,-293.17,0.000306,7]
[403881575,1769623843386,-160.0,0.00030613,4]
[403881576,1769623843396,-1000.0,0.00030634,14]
[403881577,1769623843405,-151.0,0.00030654,14]
[403881578,1769623843414,-1000.0,0.00030677,14]
[403881579,1769623843424,-750.0,0.00030685,5]
[403881580,1769623843433,-2312.83697232,0.00030699,4]
[403881581,1769623843443,-2398.4119403,0.00030699,4]
[403881582,1769623843453,-2487.15318209,0.00030699,4]
[403881583,1769623843463,-2579.17784983,0.00030699,4]
[403881584,1769623843473,-2674.60743027,0.00030699,4]
[403881585,1769623843483,-2773.56790519,0.00030699,4]
[403881586,1769623843492,-2876.18991768,0.00030699,4]
[403881587,1769623843501,-2982.60894464,0.00030699,4]
[403881588,1769623843511,-3092.96547559,0.00030699,4]
[403881589,1769623843520,-250.0,0.00030699,4]
[403881590,1769623843530,-174.61919141,0.00030699,4]
[403881591,1769623843540,-1000.0,0.00030699,4]
[403881592,1769623843549,-151.0,0.00030699,4]
[403881593,1769623843559,-181.08010149,0.00030699,4]
[403881594,1769623843568,-1000.0,0.00030699,4]
[403881596,1769623843577,-250.0,0.00030699,4]
[403881598,1769623843586,-250.0,0.00030699,4]
[403881599,1769623843595,-169.33681227,0.00030699,4]
[403881600,1769623843604,-250.0,0.00030699,4]
[403881601,1769623843613,-151.0,0.00030699,4]
[403881602,1769623843623,-500.0,0.00030699,4]
[403881603,1769623843632,-289.41339882,0.00030699,4]
[403881604,1769623843642,-500.0,0.00030699,4]
[403881605,1769623843651,-478.75725327,0.00030699,4]
[403881606,1769623843660,-496.47127164,0.00030699,4]
[403881607,1769623843670,-514.84070869,0.00030699,4]
[403881608,1769623843679,-533.88981491,0.00030699,4]
[403881609,1769623843689,-553.64373807,0.00030699,4]
[403881610,1769623843698,-574.12855637,0.00030699,4]
[403881611,1769623843707,-348.5216759,0.00030699,4]
[403881612,1769623843716,-151.0,0.00030699,4]
[403881613,1769623843726,-156.70093233,0.00030699,4]
[403881614,1769623843735,-1000.0,0.000307,4]
[403881615,1769623843744,-250.0,0.000307,10]
[403881616,1769623843754,-3120.4801677,0.00030719,2]
[403881617,1769623843763,-852.0595959,0.00030719,2]
[403881618,1769623843773,-155.3595594,0.00030719,2]
[403881619,1769623843782,-664.65167582,0.00030719,14]
[403881621,1769623843792,-937.77202557,0.00030719,14]
[403881622,1769623843801,-151.0,0.00030719,14]
[403881623,1769623843811,-206.36876951,0.00030738,10]
[403881624,1769623843820,-160.09522763,0.00030738,10]
[403881625,1769623843830,-250.000238,0.00030739,31]
[403881626,1769623843840,-250.000238,0.00030739,31]
[403881628,1769623843849,-250.000238,0.00030739,31]
[403881630,1769623843858,-250.000238,0.00030739,31]
[403881632,1769623843868,-2256795.9930831,0.00030739,30]
[403881655,1769623844073,-1794.0,0.00030739,30]
[403881678,1769623844275,-174.61919141,0.00030699,4]
[403881680,1769623844285,-578.20924308,0.00030699,4]
[403881682,1769623844295,-181.08010149,0.00030699,4]
[403881683,1769623844304,-599.60298507,0.00030699,4]
[403881685,1769623844314,-187.78006525,0.00030699,4]
[403881687,1769623844323,-621.78829552,0.00030699,4]
[403881689,1769623844332,-194.72792766,0.00030699,4]
[403881692,1769623844341,-393.96445136,0.00030699,4]
[403881693,1769623844350,-201.93286099,0.00030699,4]
[403881696,1769623844360,-179011.58701124,0.00030739,30]
[403881698,1769623844376,-10363.00542391,0.00030739,30]
[403881833,1769623846520,-209.40437684,0.00030699,4]
[403881834,1769623846530,-217.15233878,0.00030699,4]
[403881835,1769623846539,-225.18697532,0.00030699,4]
[403881836,1769623846548,-500.0,0.00030739,7]
[403881837,1769623846558,-12118.72017068,0.00030739,30]
[403881838,1769623846574,-1975.1610861,0.00030739,30]
[403881839,1769623846586,-442.41826624,0.00030739,30]
[403881840,1769623846630,-2127.1934622,0.00030739,30]
[403881843,1769624022536,500.0,0.00034858,120]
[403881844,1769624025316,439.610729,0.00034858,120]
[403881845,1769624723301,341.63,0.00034936,120]
[403881846,1769625004048,153.05,0.0001,2]
[403881847,1769625004596,153.05,0.000102,2]
[403881848,1769625005154,153.05,0.000103,2]
[403881849,1769625005719,153.05,0.000105,2]
[403881850,1769625012430,153.05,0.000106,2]
[403881851,1769625013022,153.05,0.000108,2]
[403881880,1769625032427,-589.0,0.00012002,2]
[403881882,1769625032437,-2011.0,0.00012002,2]
[403881884,1769625032448,-449.9054419,0.00012002,2]
[403881886,1769625032457,-291.96122581,0.00012165,2]
[403881888,1769625032467,-1200.0,0.00012328,2]
[403881890,1769625032478,-238.08,0.00012329,2]
[403881893,1769625032488,-198.4,0.00012329,2]
[403881895,1769625032498,-165.34,0.00012329,2]
[403881897,1769625032507,-206.31333229,0.00012329,2]
[403881900,1769625032519,-620.38666771,0.00012329,2]
[403881903,1769625032528,-300.0,0.0001268,2]
[403881906,1769625032539,-194.13185526,0.0001268,2]
[403881910,1769625032551,-105.86814474,0.0001268,2]
[403881913,1769625032560,-300.0,0.0001268,2]
[403881914,1769625032570,-300.0,0.0001268,2]
[403881915,1769625032580,-300.0,0.0001268,2]
[403881916,1769625032589,-344.15,0.00012681,2]
[403881918,1769625032598,-378.29045837,0.0001284,2]
[403881941,1769625038589,-23800.95712851,0.0001284,2]
[403881942,1769625038601,-1695820.75241312,0.0001284,2]
[403881943,1769625038611,-151.0,0.000129,2]
[403881944,1769625038620,-151.0,0.000129,2]
[403881945,1769625038629,-151.0,0.000129,2]
[403881946,1769625038639,-3655.74691475,0.000129,2]
[403881947,1769625038648,-151.0,0.000129,2]
[403881948,1769625038657,-151.0,0.000129,2]
[403881949,1769625038667,-151.0,0.000129,2]
[403881950,1769625038676,-151.0,0.000129,2]
[403881951,1769625038686,-151.0,0.000129,2]
[403881952,1769625038696,-151.0,0.000129,2]
[403881953,1769625038705,-151.0,0.000129,2]
[403881954,1769625038715,-151.0,0.000129,2]
[403881955,1769625038724,-290.56605106,0.00012939,2]
[403881956,1769625038733,-269.47751296,0.00012939,2]
[403881957,1769625038743,-613.47065181,0.00012939,2]
[403881958,1769625038752,-200.0,0.00012939,2]
[403881959,1769625038761,-200.57111926,0.00012966,2]
[403881960,1769625038770,-500.0,0.00012966,2]
[403881961,1769625038779,-500.0,0.00012966,2]
[403881962,1769625038788,-2736.94264847,0.00013,2]
[403881963,1769625038797,-195.23500925,0.00013103,2]
[403881964,1769625038816,-500.0,0.00013103,2]
[403881965,1769625038827,-500.0,0.00013103,2]
[403881966,1769625038837,-300.0,0.00013198,2]
[403881967,1769625038847,-300.0,0.00013198,2]
[403881968,1769625038857,-300.0,0.00013198,2]
[403881969,1769625038867,-300.0,0.00013198,2]
[403881970,1769625038877,-300.0,0.00013198,2]
[403881971,1769625038887,-300.0,0.00013198,2]
[403881972,1769625038896,-300.0,0.00013198,2]
[403881973,1769625038906,-300.0,0.00013198,2]
[403881974,1769625038916,-300.0,0.00013198,2]
[403881975,1769625038925,-300.0,0.00013198,2]
[403881976,1769625038936,-300.0,0.00013198,2]
[403881977,1769625038946,-300.0,0.00013198,2]
[403881978,1769625038955,-300.0,0.00013198,2]
[403881979,1769625038965,-300.0,0.00013198,2]
[403881980,1769625038975,-300.0,0.00013198,2]
[403881981,1769625038984,-600.0,0.00013198,2]
[403881982,1769625038994,-500.0,0.00013214,2]
[403881983,1769625039003,-200.34117545,0.0001324,2]
[403881984,1769625039012,-250.0,0.0001324,2]
[403881985,1769625039022,-200.0,0.0001324,2]
[403881986,1769625039031,-500.0,0.0001324,2]
[403881987,1769625039040,-500.0,0.0001324,2]
[403881988,1769625039050,-200.9171616,0.0001324,2]
[403881989,1769625039059,-500.0,0.00013273,2]
[403881990,1769625039068,-176.20020011,0.00013273,2]
[403881991,1769625039078,-500.0,0.00013273,2]
[403881992,1769625039087,-500.0,0.00013273,2]
[403881993,1769625039096,-500.0,0.00013273,2]
[403881994,1769625039106,-500.0,0.00013273,2]
[403881995,1769625039116,-500.0,0.00013273,2]
[403881996,1769625039126,-500.0,0.00013377,2]
[403881997,1769625039136,-500.0,0.00013377,2]
[403881998,1769625039145,-200.0,0.00013377,2]
[403881999,1769625039155,-8180.97126027,0.00013479,2]
[403882000,1769625039163,-500.0,0.00013488,2]
[403882001,1769625039173,-500.0,0.00013514,2]
[403882002,1769625039183,-500.0,0.00013514,2]
[403882003,1769625039193,-1680.0,0.00013561,2]
[403882004,1769625039202,-500.0,0.00013651,2]
[403882005,1769625039382,-500.0,0.00013651,2]
[403882006,1769625039399,-250.0,0.00013651,2]
[403882007,1769625039409,-300.0,0.00013673,2]
[403882008,1769625039419,-500.0,0.00013698,2]
[403882009,1769625039428,-500.0,0.00013698,2]
[403882010,1769625039437,-231.9426637,0.00013698,2]
[403882011,1769625039447,-500.0,0.00013698,2]
[403882012,1769625039457,-500.0,0.00013698,2]
[403882013,1769625039466,-500.0,0.00013698,2]
[403882014,1769625039475,-500.0,0.00013698,2]
[403882015,1769625039484,-500.0,0.00013698,2]
[403882016,1769625039493,-500.0,0.00013698,2]
[403882017,1769625039503,-500.0,0.00013698,2]
[403882018,1769625039511,-500.0,0.00013698,2]
[403882019,1769625039520,-500.0,0.00013698,2]
[403882020,1769625039530,-500.0,0.00013698,2]
[403882021,1769625039539,-245.05641761,0.00013698,2]
[403882022,1769625039548,-500.0,0.00013698,2]
[403882023,1769625039557,-500.0,0.00013698,2]
[403882024,1769625039567,-500.0,0.00013698,2]
[403882025,1769625039575,-199.72375222,0.00013698,2]
[403882026,1769625039584,-500.0,0.00013698,2]
[403882027,1769625039594,-500.0,0.00013698,2]
[403882028,1769625039603,-500.0,0.00013698,2]
[403882029,1769625039612,-500.0,0.00013698,2]
[403882030,1769625039621,-500.0,0.00013698,2]
[403882031,1769625039629,-500.0,0.00013698,2]
[403882032,1769625039638,-500.0,0.00013698,2]
[403882033,1769625039647,-500.0,0.00013698,2]
[403882034,1769625039657,-500.0,0.00013698,2]
[403882035,1769625039666,-321.00935932,0.00013698,2]
[403882036,1769625039675,-493.63025993,0.00013698,2]
[403882037,1769625039685,-500.0,0.00013698,2]
[403882038,1769625039694,-500.0,0.00013698,2]
[403882039,1769625039703,-500.0,0.00013698,2]
[403882040,1769625039712,-500.0,0.00013698,2]
[403882041,1769625039721,-500.0,0.00013698,2]
[403882042,1769625039730,-500.0,0.00013698,2]
[403882043,1769625039739,-500.0,0.00013698,2]
[403882044,1769625039748,-500.0,0.00013698,2]
[403882045,1769625039757,-500.0,0.00013698,2]
[403882046,1769625039767,-500.0,0.00013698,2]
[403882047,1769625039775,-500.0,0.00013698,2]
[403882048,1769625039785,-500.0,0.00013698,2]
[403882049,1769625039794,-500.0,0.00013698,2]
[403882050,1769625039803,-500.0,0.00013698,2]
[403882051,1769625039812,-179.13377455,0.00013698,2]
[403882052,1769625039821,-500.0,0.00013699,2]
[403882053,1769625039830,-500.0,0.00013699,2]
[403882054,1769625039839,-260.16839164,0.00013699,2]
[403882055,1769625039849,-500.0,0.00013699,2]
[403882056,1769625039858,-500.0,0.00013699,2]
[403882057,1769625039867,-500.0,0.00013699,2]
[403882058,1769625039876,-500.0,0.00013699,2]
[403882059,1769625039885,-445.1362178,0.00013699,2]
[403882060,1769625039895,-500.0,0.00013699,2]
[403882061,1769625039903,-500.0,0.00013699,2]
[403882062,1769625039912,-500.0,0.00013699,2]
[403882063,1769625039921,-500.0,0.00013699,2]
[403882064,1769625039930,-500.0,0.00013699,2]
[403882065,1769625039939,-500.0,0.00013699,2]
[403882066,1769625039950,-213.84661778,0.00013699,2]
[403882067,1769625039960,-532.28183888,0.00013699,2]
[403882068,1769625039969,-443.49274844,0.00013699,2]
[403882069,1769625039978,-500.0,0.00013699,2]
[403882070,1769625039987,-320.04248703,0.00013699,2]
[403882071,1769625039996,-506.10991888,0.00013699,2]
[403882072,1769625040005,-500.0,0.00013699,2]
[403882073,1769625040015,-500.0,0.00013699,2]
[403882074,1769625040024,-500.0,0.00013699,2]
[403882075,1769625040032,-500.0,0.00013699,2]
[403882076,1769625040041,-500.0,0.00013699,2]
[403882077,1769625040051,-500.0,0.00013699,2]
[403882078,1769625040060,-501.77042598,0.00013699,2]
[403882079,1769625040070,-500.0,0.00013699,2]
[403882080,1769625040079,-500.0,0.00013699,2]
[403882081,1769625040089,-500.0,0.00013699,2]
[403882082,1769625040099,-500.0,0.00013699,2]
[403882083,1769625040109,-500.0,0.00013699,2]
[403882084,1769625040118,-500.0,0.00013699,2]
[403882085,1769625040128,-500.0,0.00013699,2]
[403882086,1769625040138,-500.0,0.00013699,2]
[403882087,1769625040147,-500.0,0.00013699,2]
[403882088,1769625040157,-500.0,0.00013699,2]
[403882089,1769625040166,-500.41621604,0.00013699,2]
[403882090,1769625040176,-501.93478625,0.00013699,2]
[403882091,1769625040185,-32205.51758818,0.00013712,2]
[403882092,1769625040195,-500.0,0.00013762,2]
[403882093,1769625040204,-500.0,0.00013788,2]
[403882094,1769625040214,-155.68029,0.00013788,2]
[403882095,1769625040224,-171.04650347,0.00013788,2]
[403882096,1769625040234,-1000.0,0.00013821,2]
[403882097,1769625040243,-1000.0,0.00013821,2]
[403882098,1769625040253,-1000.0,0.00013821,2]
[403882099,1769625040262,-1000.0,0.00013821,2]
[403882100,1769625040271,-1000.0,0.00013821,2]
[403882101,1769625040280,-1000.0,0.00013821,2]
[403882102,1769625040289,-420.0,0.0001391,2]
[403882103,1769625040299,-314.0,0.0001391,2]
[403882104,1769625040309,-163.24821694,0.00013925,2]
[403882105,1769625040322,-100000.0,0.00014006,2]
[403882106,1769625040332,-431.36548199,0.00014036,2]
[403882107,1769625040341,-344.51424646,0.00014165,2]
[403882108,1769625040350,-600.0,0.00014221,2]
[403882109,1769625040362,-502.14214416,0.00014247,2]
[403882110,1769625040371,-928.72037754,0.00014247,2]
[403882111,1769625040382,-172.30391573,0.00014247,2]
[403882112,1769625040392,-653.67992137,0.00014247,2]
[403882113,1769625040401,-1000.0,0.00014247,2]
[403882114,1769625040410,-1000.0,0.00014247,2]
[403882115,1769625040419,-1000.0,0.00014247,2]
[403882116,1769625040428,-250.0,0.00014247,2]
[403882118,1769625040438,-509.85507396,0.00014247,2]
[403882120,1769625040447,-159.31465189,0.00014247,2]
[403882122,1769625040456,-175.49146446,0.00014247,2]
[403882124,1769625040465,-1003.36640104,0.00014247,2]
[403882125,1769625040474,-626.86038304,0.00014247,2]
[403882127,1769625040484,-501.75253763,0.00014247,2]
[403882129,1769625040493,-898.31661661,0.00014247,2]
[403882130,1769625040502,-1146.16076302,0.00014247,2]
[403882131,1769625040512,-800.60461598,0.00014247,2]
[403882132,1769625040521,-1134.23032778,0.00014247,2]
[403882133,1769625040530,-378.71570647,0.00014247,2]
[403882135,1769625040539,-1000.0,0.00014247,2]
[403882136,1769625040548,-1002.16076125,0.00014247,2]
[403882138,1769625040557,-1000.0,0.00014247,2]
[403882140,1769625040567,-1000.0,0.00014247,2]
[403882141,1769625040575,-722.3651231,0.00014247,2]
[403882142,1769625040585,-501.67094293,0.00014247,2]
[403882143,1769625040594,-1001.40716094,0.00014247,2]
[403882144,1769625040603,-501.48666107,0.00014247,2]
[403882145,1769625040612,-1000.0,0.00014247,2]
[403882146,1769625040621,-505.03835844,0.00014247,2]
[403882147,1769625040630,-1500.0,0.00014368,2]
[403882148,1769625040639,-1500.0,0.00014368,2]
[403882149,1769625040648,-1500.0,0.00014368,2]
[403882150,1769625040656,-1500.0,0.00014368,2]
[403882151,1769625040666,-1500.0,0.00014368,2]
[403882152,1769625040675,-1500.0,0.00014368,2]
[403882153,1769625040684,-720.0,0.00014518,2]
[403882154,1769625040693,-900.0,0.00014768,2]
[403882155,1769625040702,-1196.49020811,0.00014795,2]
[403882157,1769625040711,-500.0,0.00014795,2]
[403882158,1769625040720,-500.0,0.00014795,2]
[403882159,1769625040729,-300.0,0.00014795,2]
[403882160,1769625040738,-526.28781016,0.00014795,2]
[403882161,1769625040747,-500.68775555,0.00014795,2]
[403882162,1769625040756,-1500.0,0.00014795,2]
[403882163,1769625040765,-500.0,0.00014795,2]
[403882164,1769625040775,-2000.0,0.00014916,2]
[403882165,1769625040784,-2000.0,0.00014916,2]
[403882166,1769625040793,-2000.0,0.00014916,2]
[403882167,1769625040803,-2000.0,0.00014916,2]
[403882168,1769625040812,-295.51234803,0.00014916,2]
[403882169,1769625040821,-2000.0,0.00014916,2]
[403882170,1769625040830,-2351.0,0.00014917,2]
[403882171,1769625040839,-11230.08306976,0.00015,2]
[403882172,1769625040848,-40878.38369255,0.00015,2]
[403882173,1769625040856,-587.0,0.0001526,2]
[403882175,1769625040865,-993.63223956,0.00015316,2]
[403882176,1769625040874,-2000.0,0.00015342,2]
[403882177,1769625040884,-3655.74691469,0.00015383,2]
[403882178,1769625040893,-862224.75211309,0.000154,2]
[403882179,1769625040902,-1355.419529,0.00015464,2]
[403882180,1769625040911,-1007.06964924,0.00015464,2]
[403882181,1769625040921,-2500.0,0.00015464,2]
[403882182,1769625040930,-2500.0,0.00015464,2]
[403882183,1769625040939,-2500.0,0.00015464,2]
[403882184,1769625040948,-2500.0,0.0001589,2]
[403882185,1769625040957,-864.0,0.00015969,2]
[403882186,1769625040966,-216.23346271,0.00016,2]
[403882187,1769625040975,-3000.0,0.00016012,2]
[403882188,1769625040984,-3074.12268118,0.00016012,2]
[403882189,1769625040992,-2504.19700684,0.00016012,2]
[403882190,1769625041001,-397.0672671,0.00016165,2]
[403882191,1769625041011,-729.0,0.00016408,2]
[403882192,1769625041020,-500.0,0.00016438,2]
[403882193,1769625041028,-243.26900401,0.00016438,2]
[403882194,1769625041037,-200.0,0.00016438,2]
[403882195,1769625041046,-150.42150351,0.00016438,2]
[403882196,1769625041056,-3000.0,0.00016438,2]
[403882197,1769625041065,-200.0,0.00016473,2]
[403882198,1769625041074,-3500.0,0.0001656,2]
[403882199,1769625041083,-250.0,0.0001661,2]
[403882200,1769625041092,-170.0,0.00016712,3]
[403882201,1769625041101,-823.0,0.0001674,2]
[403882202,1769625041111,-3500.0,0.00016986,2]
[403882203,1769625041120,-92124.15564802,0.00017,2]
[403882204,1769625041129,-160.0,0.00017004,2]
[403882205,1769625041138,-1041.66666667,0.00017004,2]
[403882206,1769625041147,-160.0,0.00017004,2]
[403882207,1769625041156,-3500.0,0.00017108,2]
[403882208,1769625041165,-4000.0,0.00017534,2]
[403882209,1769625041174,-1000.0,0.00017566,2]
[403882210,1769625041183,-2141.16843233,0.000176,2]
[403882211,1769625041192,-43521.25574867,0.000178,3]
[403882212,1769625041201,-150.12313849,0.00017808,2]
[403882213,1769625041210,-281.81382901,0.00017842,2]
[403882214,1769625041219,-3655.74691469,0.00017925,2]
[403882215,1769625041228,-135573.83356864,0.00018,2]
[403882216,1769625041237,-126062.66862741,0.00018,2]
[403882217,1769625041246,-4500.0,0.00018082,2]
[403882218,1769625041255,-449.62028775,0.00018165,2]
[403882219,1769625041265,-9548.19578351,0.000183,3]
[403882220,1769625041274,-1152.0,0.00018365,2]
[403882221,1769625041283,-5000.0,0.0001863,2]
[403882222,1769625041293,-69497.33252454,0.00019,2]
[403882223,1769625041303,-508.0614,0.00019178,2]
[403882224,1769625041315,-200.0,0.00019178,2]
[403882225,1769625041324,-508.0614,0.00019178,2]
[403882226,1769625041333,-508.0614,0.00019178,2]
[403882227,1769625041342,-2194.85911576,0.00019178,2]
[403882228,1769625041353,-172.01,0.000192,2]
[403882229,1769625041364,-160.5,0.000192,2]
[403882230,1769625041374,-654.65921239,0.00019292,2]
[403882231,1769625041384,-1000.0,0.00019323,2]
[403882232,1769625041394,-244.0,0.00019323,2]
[403882233,1769625041404,-1381.6,0.000194,2]
[403882234,1769625041413,-5520.1,0.000194,2]
[403882235,1769625041422,-21760.61,0.000197,3]
[403882236,1769625041431,-508.0614,0.0002,4]
[403882237,1769625041440,-508.0614,0.0002,4]
[403882238,1769625041449,-508.0614,0.0002,4]
[403882239,1769625041458,-9506.71508995,0.0002,2]
[403882240,1769625041468,-349308.87962667,0.0002,2]
[403882241,1769625041477,-1613.0,0.00020146,2]
[403882242,1769625041486,-2618.63684958,0.00020158,2]
[403882243,1769625041496,-502.1733084,0.00020165,2]
[403882244,1769625041505,-508.0614,0.00020411,5]
[403882245,1769625041514,-508.0614,0.00020411,5]
[403882246,1769625041524,-3655.74691469,0.00020468,2]
[403882247,1769625041533,-5891.93291155,0.00021024,2]
[403882248,1769625041542,-1000.0,0.00021255,10]
[403882249,1769625041551,-492.0,0.00021255,10]
[403882250,1769625041560,-4169.337653,0.00021255,7]
[403882251,1769625041570,-974.0,0.00022101,2]
[403882252,1769625041579,-554.72632904,0.00022165,2]
[403882253,1769625041592,-1191.239329,0.00022955,30]
[403882254,1769625041602,-1041.66666667,0.00023,3]
[403882255,1769625041611,-160.0,0.00023,3]
[403882256,1769625041620,-3655.74691469,0.00023011,2]
[403882257,1769625041630,-1000.0,0.00023381,10]
[403882258,1769625041639,-791.0,0.00023381,10]
[403882259,1769625041649,-184.63,0.000234,2]
[403882260,1769625041658,-325.74,0.000234,7]
[403882261,1769625041667,-490.510312,0.000234,30]
[403882262,1769625041676,-210.218705,0.000234,30]
[403882263,1769625041685,-607.27934969,0.00024165,2]
[403882264,1769625041694,-21760.61,0.000246,3]
[403882265,1769625041704,-610879.379074,0.000249,2]
[403882266,1769625041714,-160.5,0.000249,7]
[403882267,1769625041723,-3655.74691469,0.00025554,2]
[403882268,1769625041732,-1000.0,0.00025719,10]
[403882269,1769625041741,-1000.0,0.00025719,10]
[403882270,1769625041751,-153000.00000066,0.00026,30]
[403882271,1769625041760,-1041.66666667,0.00026,30]
[403882272,1769625041769,-159.0,0.00026027,19]
[403882273,1769625041778,-659.83237034,0.00026165,2]
[403882274,1769625041787,-595.619664,0.00026569,30]
[403882275,1769625041797,-5520.1,0.000267,2]
[403882276,1769625041806,-1041.66666667,0.000268,30]
[403882277,1769625041815,-167.0,0.00027,7]
[403882278,1769625041824,-160.5,0.00027,7]
[403882279,1769625041834,-190.69263435,0.0002732,5]
[403882280,1769625041843,-157.1173049,0.00027397,2]
[403882281,1769625041853,-1041.66666667,0.000276,30]
[403882282,1769625041862,-250.0,0.00027945,5]
[403882283,1769625041871,-1381.6,0.00028,14]
[403882284,1769625041882,-3655.74691469,0.00028096,2]
[403882285,1769625041891,-190.69263435,0.00028165,5]
[403882286,1769625041901,-712.38539098,0.00028165,2]
[403882287,1769625041910,-175.182255,0.000282,30]
[403882288,1769625041919,-1071.528267,0.000282,4]
[403882289,1769625041928,-168.0,0.00028273,2]
[403882290,1769625041938,-1000.0,0.00028291,30]
[403882291,1769625041947,-1000.0,0.00028291,30]
[403882292,1769625041956,-579.0,0.00028291,30]
[403882293,1769625041965,-276.13,0.0002834,2]
[403882294,1769625041975,-276.12,0.00028367,2]
[403882295,1769625041984,-184.63,0.000284,2]
[403882296,1769625041993,-325.74,0.000284,7]
[403882297,1769625042002,-630.0,0.00028434,2]
[403882298,1769625042011,-2150.0,0.00028434,2]
[403882299,1769625042020,-716.0,0.00028434,2]
[403882300,1769625042030,-180.381,0.00028434,2]
[403882301,1769625042046,-418.0,0.00028434,2]
[403882302,1769625042056,-418.0,0.00028434,2]
[403882303,1769625042065,-175.182255,0.00028493,60]
[403882304,1769625042075,-350.0,0.00028493,5]
[403882305,1769625042085,-168.0,0.00028519,2]
[403882306,1769625042095,-1000.0,0.000287,4]
[403882307,1769625042104,-168.0,0.00028852,2]
[403882308,1769625042114,-168.0,0.00028865,2]
[403882309,1769625042123,-168.0,0.000289,2]
[403882310,1769625042134,-5000.0,0.00028951,21]
[403882311,1769625042144,-5520.1,0.00029,2]
[403882312,1769625042153,-1120.30664514,0.00029,2]
[403882313,1769625042163,-450.0,0.00029041,5]
[403882314,1769625042172,-160.5,0.000291,7]
[403882315,1769625042181,-1957.856,0.00029131,2]
[403882316,1769625042191,-4246.65524428,0.00029131,2]
[403882317,1769625042200,-168.0,0.00029138,2]
[403882318,1769625042210,-2030.296672,0.00029186,2]
[403882319,1769625042219,-1000.0,0.000292,4]
[403882320,1769625042228,-2105.41764886,0.00029241,2]
[403882321,1769625042237,-2183.31810187,0.00029296,2]
[403882322,1769625042246,-2264.10087164,0.00029351,2]
[403882323,1769625042256,-2347.87260389,0.00029406,2]
[403882324,1769625042266,-400.0,0.00029411,3]
[403882325,1769625042275,-2434.74389024,0.00029461,2]
[403882326,1769625042284,-2524.82941417,0.00029516,2]
[403882327,1769625042294,-2618.2481025,0.00029571,2]
[403882328,1769625042304,-550.0,0.00029589,5]
[403882329,1769625042317,-2715.12328229,0.00029626,2]
[403882330,1769625042327,-500.0,0.00029627,7]
[403882331,1769625042337,-2460.09987822,0.00029681,2]
[403882332,1769625042346,-1000.0,0.000297,4]
[403882333,1769625042359,-1043.65606314,0.00029797,2]
[403882334,1769625042368,-563657.76,0.000299,6]
[403882335,1769625042379,-305.6755923,0.00029994,30]
[403882336,1769625042388,-1000.0,0.0003,14]
[403882337,1769625042399,-190.0,0.0003,14]
[403882338,1769625042409,-178.5494496,0.0003,14]
[403882339,1769625042419,-400.0,0.00030073,3]
[403882340,1769625042428,-400.0,0.00030097,3]
[403882341,1769625042438,-880.504,0.00030107,7]
[403882342,1769625042447,-175.20269643,0.00030137,2]
[403882343,1769625042457,-650.0,0.00030137,5]